bitfinex/quotes_ETHUSD_20240718
["timestamp","ask_amount","ask_price","bid_price","bid_amount"]
[1721316245717,0.59757777,3406.8,3406.3,2.93572]
[1721316246114,0.59757777,3406.8,3406.4,2.97412084]
[1721316246326,1.78737236,3407.1,3406.4,2.97412084]
[1721316246541,1.78737236,3407.2,3406.4,2.97412084]
[1721316246849,0.59757777,3407.3,3406.4,0.03847084]
[1721316247016,2.93531,3406.8,3406.4,0.03847084]
[1721316247214,2.93531,3406.8,3405.8,5.42152]
[1721316247215,2.93529,3406.9,3405.9,2.93607]
[1721316247522,2.9359,3406.1,3406.0,0.03866749]
[1721316247723,12.98525427,3406.1,3406.0,0.03866749]
[1721316247935,2.93664,3405.3,3404.4,2.93735]
[1721316248137,2.93608,3405.9,3404.9,2.93693]
[1721316248138,2.93622,3405.8,3404.9,2.93693]
[1721316248311,2.93617,3405.8,3404.9,2.93693]
[1721316248514,0.896139,3405.9,3405.0,0.09652574]
[1721316248712,0.896139,3405.9,3405.0,2.97459739]
[1721316248903,3.832279,3405.9,3405.1,0.59115074]
[1721316249104,3.832279,3405.9,3405.1,2.93677]
[1721316249332,0.896139,3405.9,3405.2,0.03781907]
[1721316249799,0.896139,3405.9,3405.6,2.93633]
[1721316250000,0.896139,3405.9,3405.7,3.26744168]
[1721316250226,0.896139,3405.9,3405.8,5.87232]
[1721316250700,0.896139,3405.9,3405.8,5.90982661]
[1721316251044,0.896139,3405.9,3405.8,8.84598661]
[1721316251247,2.93462,3407.6,3406.6,2.93542]
[1721316251248,2.9347,3407.5,3406.6,2.93542]
[1721316251547,2.93462,3407.6,3406.7,2.93538]
[1721316251702,2.93462,3407.6,3406.7,2.97236026]
[1721316251908,2.93462,3407.6,3406.8,2.9353]
[1721316252110,5.02566745,3407.8,3406.9,2.93521]
[1721316252310,5.02566745,3407.8,3406.9,2.97198786]
[1721316252542,2.93454,3407.7,3407.0,0.29719879]
[1721316252930,2.09120745,3407.8,3407.1,0.03667958]
[1721316253164,5.02564745,3407.8,3407.1,0.03667958]
[1721316253535,2.09120745,3407.8,3407.1,2.97171958]
[1721316254048,2.09120745,3407.8,3407.1,0.03667958]
[1721316254256,5.02566745,3407.8,3407.1,0.03667958]
[1721316254648,2.09120745,3407.8,3407.1,0.03667958]
[1721316254848,2.09120745,3407.8,3407.1,2.97171958]
[1721316255049,2.09120745,3407.8,3407.1,3.59212442]
[1721316255249,2.09120745,3407.8,3407.1,6.52716442]
[1721316256354,2.09120745,3407.8,3407.1,0.65708442]
[1721316256528,2.93467,3407.6,3407.1,0.03667958]
[1721316256733,2.93485,3407.4,3407.1,0.03667958]
[1721316256930,2.93467,3407.6,3406.4,2.93564]
[1721316256931,2.93491,3407.3,3406.4,2.93564]
[1721316257135,2.93464,3407.6,3407.1,0.03662899]
[1721316257428,2.93476,3407.5,3406.5,2.93549]
[1721316257639,2.93481,3407.4,3406.6,0.03687471]
[1721316257824,2.93517,3407.0,3406.6,0.03687471]
[1721316258057,0.53522394,3407.0,3406.6,0.03687471]
[1721316258214,2.3521,3407.1,3405.3,2.3034]
[1721316258415,2.93597,3406.1,3404.9,2.93691]
[1721316258655,0.29503485,3406.0,3405.2,2.93662]
[1721316258813,0.29503485,3406.0,3405.3,0.59110375]
[1721316259017,2.93597,3406.1,3405.3,0.6285237]
[1721316259457,0.29498517,3406.0,3405.3,0.03741995]
[1721316259753,0.59739351,3406.2,3405.3,0.03741995]
[1721316259754,2.93639,3405.6,3405.3,0.03741995]
[1721316260062,2.93639,3405.6,3404.7,2.9371]
[1721316260234,2.93639,3405.6,3405.4,0.03737076]
[1721316260433,2.93642,3405.5,3404.6,2.9372]
[1721316260975,2.9366,3405.3,3404.7,0.03771513]
[1721316261261,2.93703,3404.8,3403.8,2.93789]
[1721316261423,2.93703,3404.8,3403.9,2.93777]
[1721316261762,2.93695,3404.9,3404.1,2.93762]
[1721316261968,2.93695,3404.9,3404.0,0.587573]
[1721316262132,2.93695,3404.9,3404.0,3.525283]
[1721316262867,0.89568529,3405.3,3404.2,2.93748]
[1721316262868,0.59739351,3405.3,3404.2,2.93748]
[1721316263197,0.59094815,3405.2,3404.3,0.6462753]
[1721316263332,0.29467553,3405.2,3404.3,0.6462753]
[1721316263518,2.93701,3404.9,3404.0,2.9377]
[1721316263726,2.93682,3405.1,3404.2,2.93753]
[1721316263920,2.93686,3405.0,3404.0,2.9377]
[1721316264459,3.53396351,3405.4,3403.9,0.0587409]
[1721316264663,3.0,3405.5,3404.1,2.93762]
[1721316264973,2.93711,3404.7,3404.1,0.587536]
[1721316265564,0.59739351,3405.3,3403.9,2.93779]
[1721316265565,2.937,3404.9,3403.9,2.93779]
[1721316265770,2.937,3404.9,3404.0,0.05874415]
[1721316265975,2.93678,3405.1,3404.1,2.93762]
[1721316266121,1.4930788,3405.6,3404.7,2.93704]
[1721316266321,1.18979459,3405.7,3404.9,2.9369]
[1721316266623,1.18979459,3405.7,3405.1,2.93676]
[1721316267044,0.59739351,3406.3,3405.2,2.93667]
[1721316267239,2.93577,3406.3,3405.2,2.93667]
[1721316267475,2.93582,3406.2,3405.3,2.93658]
[1721316267848,2.93574,3406.3,3405.4,2.93644]
[1721316268055,2.93574,3406.3,3405.2,2.93667]
[1721316268056,2.93589,3406.2,3405.2,2.93667]
[1721316268238,2.93589,3406.2,3405.0,3.23053]
[1721316268239,2.93568,3406.4,3405.5,2.9364]
[1721316268683,2.93568,3406.4,3405.4,0.293644]
[1721316268684,2.93575,3406.3,3405.4,3.230154]
[1721316268984,0.59739351,3406.7,3405.4,3.230154]
[1721316268985,2.93562,3406.5,3405.5,2.93642]
[1721316269291,2.93568,3406.4,3405.5,2.97308278]
[1721316269574,2.93568,3406.4,3405.5,3.59341446]
[1721316269796,2.93556,3406.5,3405.6,2.93633]
[1721316270139,2.93565,3406.4,3405.7,0.03656442]
[1721316271158,2.93583,3406.2,3405.7,0.03656442]
[1721316271344,2.93607,3406.0,3405.7,0.03656442]
[1721316271544,2.93567,3406.4,3405.5,2.93636]
[1721316271883,2.93567,3406.4,3405.6,2.93633]
[1721316272088,2.93567,3406.4,3405.6,2.97179728]
[1721316272384,2.93567,3406.4,3405.6,0.03546728]
[1721316272743,2.93544,3406.7,3405.7,2.93625]
[1721316272944,2.93533,3406.8,3405.8,2.93616]
[1721316273188,2.93548,3406.6,3405.8,0.03536892]
[1721316273380,2.93515,3407.0,3405.9,2.93606]
[1721316273549,2.93531,3406.8,3405.8,2.9361]
[1721316273751,2.93512,3407.1,3405.9,3.58232267]
[1721316273946,2.93531,3406.8,3405.9,3.61765826]
[1721316274145,2.93531,3406.8,3405.9,0.68164826]
[1721316274345,2.93517,3407.0,3406.0,2.93599]
[1721316274575,5.86589351,3407.5,3406.1,0.0587136]
[1721316274576,5.86590351,3407.5,3406.1,0.0587136]
[1721316274814,2.93471,3407.5,3406.5,2.93548]
[1721316274999,0.59739351,3407.6,3406.5,3.522593]
[1721316275211,2.93455,3407.7,3406.5,3.522593]
[1721316275212,2.93455,3407.7,3406.6,0.03499147]
[1721316275516,2.3338,3408.1,3406.6,0.03499147]
[1721316275517,0.59739351,3408.2,3407.2,2.93489]
[1721316275731,2.93403,3408.3,3407.2,2.93489]
[1721316275878,0.88509588,3408.2,3406.8,2.93525]
[1721316276079,0.88509588,3408.2,3406.3,2.4215]
[1721316276080,2.9347,3407.5,3407.3,0.03457403]
[1721316276279,5.86956,3407.4,3407.3,0.03457403]
[1721316276482,2.93525,3406.9,3405.9,2.93605]
[1721316276682,2.93525,3406.9,3405.7,2.3588]
[1721316276683,2.9355,3406.6,3405.7,2.93625]
[1721316277445,2.9355,3406.6,3405.8,2.93615]
[1721316277735,2.9353,3406.8,3406.0,2.93599]
[1721316277878,0.59739351,3407.2,3406.1,2.9359]
[1721316277879,2.93524,3406.9,3406.1,2.9359]
[1721316278083,2.93524,3406.9,3405.8,0.58724]
[1721316278084,2.93481,3407.4,3405.8,0.58724]
[1721316278279,2.93481,3407.4,3406.2,2.93576]
[1721316278280,2.93488,3407.3,3406.2,2.93576]
[1721316278727,2.93509,3407.1,3406.2,2.93576]
[1721316279224,2.93509,3407.1,3406.3,2.93573]
[1721316279526,2.9347,3407.5,3406.4,2.93564]
[1721316279698,2.9347,3407.5,3405.1,2.3588]
[1721316279699,2.93522,3406.9,3406.0,2.93593]
[1721316279896,2.93522,3406.9,3406.0,3.523124]
[1721316280719,2.93522,3406.9,3406.1,2.9359]
[1721316281084,3.53229351,3407.3,3406.4,2.93561]
[1721316281338,3.53219351,3407.4,3406.4,2.93561]
[1721316281535,6.2292601,3407.3,3406.2,2.93579]
[1721316281745,2.93472,3407.5,3406.5,2.96921172]
[1721316282043,0.59739351,3407.8,3406.9,2.93516]
[1721316282245,2.9346,3407.7,3406.8,2.9353]
[1721316282426,2.93438,3407.9,3407.0,0.03337289]
[1721316282625,2.93438,3407.9,3406.8,3.522383]
[1721316282626,2.93453,3407.7,3406.9,0.03342203]
[1721316282811,2.93453,3407.7,3407.1,0.03332375]
[1721316283012,2.93438,3407.9,3407.0,2.96849289]
[1721316283213,3.76941098,3408.1,3407.2,0.03327462]
[1721316283397,3.76941098,3408.1,3407.1,0.03332375]
[1721316283398,2.93459,3407.7,3407.1,0.03332375]
[1721316283597,2.93445,3407.8,3407.3,0.03318527]
[1721316283838,2.9347,3407.5,3407.2,0.0332344]
[1721316284141,2.93458,3407.7,3407.3,0.03318527]
[1721316284303,2.93478,3407.5,3407.3,0.03318527]
[1721316284504,2.93455,3407.7,3406.9,2.9352]
[1721316284711,1.06390314,3408.0,3406.9,2.9352]
[1721316284712,3.40077963,3408.0,3407.0,0.29352]
[1721316284934,3.0,3407.9,3407.2,2.93488]
[1721316285132,3.0,3408.0,3407.2,2.93488]
[1721316285444,3.0,3408.0,3407.3,0.03319963]
[1721316285646,2.93422,3408.1,3407.3,0.03319963]
[1721316285941,2.93422,3408.1,3407.4,0.0331505]
[1721316285942,2.93424,3408.1,3407.4,0.0331505]
[1721316286254,2.93442,3407.9,3407.4,0.0331505]
[1721316286429,2.93442,3407.9,3407.1,2.935]
[1721316286803,2.93444,3407.8,3407.2,0.03320999]
[1721316286999,0.59739351,3408.4,3407.2,0.03320999]
[1721316287000,2.93418,3408.1,3407.2,0.03320999]
[1721316287203,2.93418,3408.1,3406.1,2.93585]
[1721316287204,2.93514,3407.0,3406.1,2.93585]
[1721316287401,1.77509282,3408.0,3405.4,3.383]
[1721316287402,2.93482,3407.4,3406.3,2.93573]
[1721316287649,2.93482,3407.4,3406.2,5.3155]
[1721316287650,2.93482,3407.4,3406.4,2.93562]
[1721316287830,2.935,3407.2,3406.4,2.93562]
[1721316288142,0.89081151,3408.0,3406.4,2.93562]
[1721316288440,2.93484,3407.4,3406.6,2.93546]
[1721316288741,2.93456,3407.7,3406.6,2.93546]
[1721316288742,2.93476,3407.5,3406.6,2.93546]
[1721316288913,0.81037468,3407.9,3406.6,2.93541]
[1721316289119,0.81037468,3407.9,3405.9,2.93607]
[1721316289120,2.93534,3406.8,3405.7,2.93617]
[1721316289317,2.93513,3407.0,3406.0,2.93598]
[1721316289542,2.93513,3407.0,3406.1,2.9359]
[1721316289706,2.93521,3406.9,3406.1,2.9359]
[1721316290337,2.93499,3407.2,3406.2,2.96951147]
[1721316290645,0.293499,3407.1,3406.2,0.03370147]
[1721316290942,2.93519,3407.0,3406.2,2.93582]
[1721316291258,0.293499,3407.1,3406.3,2.96942716]
[1721316291553,0.293499,3407.1,3406.4,2.93564]
[1721316291754,2.93484,3407.4,3406.5,2.93551]
[1721316291903,2.93477,3407.5,3406.5,2.96923776]
[1721316292212,2.3458,3407.6,3406.5,2.96923776]
[1721316292213,2.93462,3407.6,3406.5,2.96925776]
[1721316292415,2.93454,3407.7,3406.9,2.93521]
[1721316295161,0.59739351,3408.7,3407.5,2.93469]
[1721316295312,3.22772003,3408.7,3407.8,2.93444]
[1721316295511,0.59739351,3408.9,3407.6,0.03312835]
[1721316295814,2.93381,3408.6,3407.6,2.93461]
[1721316296014,2.93381,3408.6,3406.6,0.05869122]
[1721316296211,2.93367,3408.7,3407.6,2.93458]
[1721316296511,2.93367,3408.7,3406.7,3.48535]
[1721316296512,0.73735788,3408.8,3407.8,2.93438]
[1721316296736,3.67098788,3408.8,3407.9,2.93428]
[1721316296952,0.91019779,3408.7,3407.9,2.967261]
[1721316297159,0.91019779,3408.7,3407.9,0.032981]
[1721316297487,2.93427,3408.0,3407.0,2.93506]
[1721316297763,2.93394,3408.4,3407.5,2.93461]
[1721316297924,2.93402,3408.3,3407.5,2.93461]
[1721316298131,3.520811,3408.3,3407.6,0.03300344]
[1721316298554,3.520811,3408.3,3407.5,2.93461]
[1721316298861,0.55,3408.9,3406.9,2.93516]
[1721316298862,2.93369,3408.7,3407.9,2.93435]
[1721316299061,2.93352,3408.9,3407.9,2.93435]
[1721316299062,2.93352,3408.9,3408.0,2.99290915]
[1721316299267,2.93375,3408.7,3408.0,0.03284143]
[1721316299427,2.93378,3408.6,3408.0,0.03284143]
[1721316299643,2.93419,3408.1,3407.3,2.9348]
[1721316299888,2.93432,3408.0,3407.1,5.38099]
[1721316300244,2.93415,3408.2,3407.1,2.446]
[1721316300442,2.93401,3408.3,3407.5,2.93468]
[1721316300673,0.586797,3408.3,3407.1,2.446]
[1721316300877,2.93432,3408.0,3406.9,2.9352]
[1721316301048,2.93413,3408.2,3406.5,2.2537]
[1721316301258,2.93413,3408.2,3407.2,2.93488]
[1721316301474,2.93396,3408.4,3406.5,2.2537]
[1721316301646,5.93379,3408.6,3407.6,2.9346]
[1721316301981,0.9160745,3408.5,3407.6,2.93458]
[1721316302141,0.293375,3408.7,3407.8,2.93439]
[1721316302343,2.93325,3409.2,3408.2,2.93401]
[1721316302545,2.93325,3409.2,3407.5,2.4723]
[1721316302801,2.93306,3409.4,3408.4,2.93388]
[1721316302944,2.3009,3409.5,3408.6,2.9337]
[1721316303143,2.93293,3409.6,3408.4,2.93389]
[1721316303343,2.93293,3409.6,3407.6,2.93458]
[1721316303344,0.293293,3409.5,3408.5,2.93378]
[1721316303582,3.226283,3409.5,3408.7,2.93366]
[1721316304107,0.293293,3409.5,3408.8,2.93358]
[1721316304388,2.93259,3410.0,3408.9,2.93345]
[1721316304564,2.9324,3410.2,3409.2,2.93316]
[1721316304747,2.93248,3410.1,3409.2,2.99181786]
[1721316304983,2.9324,3410.2,3409.3,2.93315]
[1721316305279,3.52932351,3410.8,3409.6,2.93284]
[1721316305480,2.93212,3410.5,3409.6,2.93284]
[1721316305676,2.93202,3410.7,3409.7,2.96458443]
[1721316305890,3.52928351,3410.8,3409.7,0.03178443]
[1721316305891,2.93203,3410.6,3409.7,0.03178443]
[1721316306181,0.35294235,3410.5,3409.7,0.03178443]
[1721316306355,2.93272,3409.8,3409.7,0.03178443]
[1721316306561,3.383,3410.3,3408.4,2.3301]
[1721316306562,2.93295,3409.6,3408.4,2.3301]
[1721316306758,2.93308,3409.4,3408.4,2.3301]
[1721316306947,2.93247,3410.1,3408.6,2.9337]
[1721316307169,2.93266,3409.9,3408.8,2.93357]
[1721316307370,2.93278,3409.8,3408.8,2.93357]
[1721316307560,2.93273,3409.8,3408.9,2.96540339]
[1721316308081,0.872487,3410.0,3409.2,2.93318]
[1721316308280,0.35294235,3410.5,3408.9,0.03199339]
[1721316308281,2.93275,3409.8,3408.9,0.03199339]
[1721316308494,2.93275,3409.8,3408.8,2.93352]
[1721316308644,2.93256,3410.0,3408.4,2.3301]
[1721316308645,2.93256,3410.0,3409.0,2.93334]
[1721316308845,3.0,3410.4,3409.0,2.93334]
[1721316308846,2.93263,3409.9,3409.0,2.93334]
[1721316309150,2.93235,3410.3,3409.4,2.93305]
[1721316309347,0.92174323,3410.2,3409.1,0.03197554]
[1721316309659,3.28508235,3410.5,3408.9,2.93341]
[1721316309660,2.93214,3410.5,3409.6,2.93282]
[1721316310195,2.93214,3410.5,3409.7,0.03168112]
[1721316310766,2.93221,3410.4,3409.7,0.03168112]
[1721316310963,2.93229,3410.3,3409.7,0.03168112]
[1721316311392,2.93229,3410.3,3409.5,2.93297]
[1721316311601,3.518801,3410.3,3409.8,0.03163206]
[1721316311765,2.93243,3410.2,3409.3,2.93315]
[1721316312114,2.93272,3409.8,3409.0,2.93335]
[1721316312385,2.9327,3409.9,3409.4,0.03154132]
[1721316312547,2.9327,3409.9,3409.1,2.93332]
[1721316312744,2.93232,3410.3,3409.5,0.03149225]
[1721316312947,2.93232,3410.3,3409.2,2.93315]
[1721316313201,2.93247,3410.1,3409.6,0.03144318]
[1721316313412,0.586479,3410.0,3409.3,2.93314]
[1721316313578,0.586479,3410.0,3409.7,0.03139412]
[1721316313780,0.586479,3410.0,3408.8,2.93353]
[1721316314015,0.586479,3410.0,3409.8,0.03134506]
[1721316314170,0.586479,3410.0,3409.1,2.93332]
[1721316314371,2.93249,3410.1,3409.9,0.031296]
[1721316314608,2.93195,3410.7,3408.7,2.93363]
[1721316314883,2.93195,3410.7,3409.8,2.9327]
[1721316315087,2.93195,3410.7,3409.9,0.03124437]
[1721316315910,2.93187,3410.8,3409.9,2.96386437]
[1721316316123,2.93164,3411.1,3410.0,2.93253]
[1721316316385,2.93187,3410.8,3409.9,2.96382437]
[1721316316598,2.93187,3410.8,3410.1,0.03106883]
[1721316316795,2.93187,3410.8,3410.0,2.96363788]
[1721316317029,3.518228,3410.8,3410.2,0.03101978]
[1721316317231,3.518228,3410.8,3410.1,2.96345883]
[1721316317232,0.586358,3410.8,3410.1,2.96345883]
[1721316317381,2.93171,3411.0,3410.3,0.03097073]
[1721316317582,2.93178,3410.9,3410.2,0.03100831]
[1721316317781,2.93178,3410.9,3410.4,0.03091022]
[1721316318018,2.93155,3411.2,3410.3,0.03095926]
[1721316318019,2.93167,3411.1,3410.3,0.03095926]
[1721316318326,2.93169,3411.0,3410.5,0.03086118]
[1721316318533,0.586324,3410.9,3410.4,0.03091022]
[1721316318691,3.518104,3410.9,3410.6,0.03081214]
[1721316319037,2.93251,3410.1,3409.2,2.93316]
[1721316319188,6.31498,3410.7,3409.0,2.93337]
[1721316319386,2.93212,3410.5,3409.4,2.93302]
[1721316319830,2.93255,3410.0,3409.2,2.93317]
[1721316320016,2.93289,3409.6,3408.9,2.4352]
[1721316320197,2.93289,3409.6,3408.6,2.93371]
[1721316320198,3.383,3410.1,3408.3,5.41281]
[1721316320400,3.383,3409.6,3409.0,0.02939249]
[1721316320596,2.9332,3409.3,3408.3,5.41274]
[1721316320791,0.3383,3409.5,3409.1,0.02935714]
[1721316320992,0.3383,3409.5,3408.8,2.93356]
[1721316321192,2.93257,3410.0,3409.2,0.02937374]
[1721316321431,2.93223,3410.4,3409.3,2.9331]
[1721316321650,2.93226,3410.4,3409.4,2.93299]
[1721316321807,2.93168,3411.1,3409.4,2.93299]
[1721316321808,2.93194,3410.7,3409.8,2.93269]
[1721316322001,2.93201,3410.7,3409.8,2.93269]
[1721316322204,3.5184,3410.7,3409.9,0.02910882]
[1721316322507,2.93226,3410.4,3409.9,0.02910882]
[1721316322713,5.86413,3410.6,3409.9,0.02910882]
[1721316322929,2.93203,3410.6,3409.5,2.93297]
[1721316323247,2.93148,3411.3,3410.1,2.93242]
[1721316323456,2.93164,3411.1,3410.2,0.29614798]
[1721316323640,0.24808,3411.3,3410.3,2.93223]
[1721316323641,2.93156,3411.2,3410.3,2.93223]
[1721316323851,2.93136,3411.4,3410.3,2.93223]
[1721316324017,2.93136,3411.4,3410.4,0.58563138]
[1721316324222,2.93143,3411.3,3410.5,2.93211]
[1721316324435,2.93143,3411.3,3410.4,3.51782138]
[1721316324628,2.93143,3411.3,3410.6,0.0287655]
[1721316324918,2.93152,3411.2,3410.7,0.02871647]
[1721316325120,0.293152,3411.1,3410.7,0.02871647]
[1721316325328,2.93196,3410.7,3409.8,2.93271]
[1721316325560,2.93196,3410.7,3409.7,2.9328]
[1721316325561,2.93201,3410.7,3409.7,2.9328]
[1721316325866,0.293152,3411.1,3409.9,2.96173882]
[1721316325867,2.93172,3411.0,3409.9,2.96173882]
[1721316326027,2.93172,3411.0,3410.1,2.93245]
[1721316326530,2.93172,3411.0,3410.2,0.02896167]
[1721316326735,3.5473592,3411.0,3410.2,0.02896167]
[1721316327124,3.5473592,3411.0,3410.0,2.93255]
[1721316327125,2.93192,3410.8,3410.0,2.93255]
[1721316327455,3.383,3411.3,3410.3,0.02891262]
[1721316327456,2.93144,3411.3,3410.3,0.02891262]
[1721316327655,2.93144,3411.3,3410.1,2.93245]
[1721316327818,2.93143,3411.3,3410.2,2.93236]
[1721316328016,0.293143,3411.2,3410.2,2.96132167]
[1721316328219,2.93163,3411.1,3410.2,2.96132167]
[1721316328472,0.293143,3411.2,3410.3,2.93227]
[1721316328638,3.224663,3411.2,3410.3,2.93227]
[1721316328844,2.93161,3411.1,3410.4,0.02886358]
[1721316329043,0.3224753,3411.1,3410.4,2.96105358]
[1721316329381,6.31404,3411.8,3410.5,2.93211]
[1721316329382,2.93135,3411.4,3410.5,2.93211]
[1721316329582,3.383,3411.8,3410.7,2.93189]
[1721316329874,0.1485243,3412.0,3410.7,2.93189]
[1721316329875,2.93116,3411.7,3410.7,2.93189]
[1721316330100,2.93092,3411.9,3410.9,2.93177]
[1721316330376,2.931,3411.8,3411.0,0.02856938]
[1721316330522,3.53204443,3411.8,3411.0,0.02856938]
[1721316330861,0.60104443,3411.8,3411.0,0.02856938]
[1721316331069,2.93118,3411.6,3411.0,0.02856938]
[1721316331361,3.53210443,3411.8,3410.9,2.93177]
[1721316331568,3.53210443,3411.8,3411.1,0.03055753]
[1721316331569,2.93106,3411.8,3411.1,0.03055753]
[1721316331766,2.93109,3411.7,3411.0,0.03061005]
[1721316332061,2.93109,3411.7,3411.2,0.03032308]
[1721316332238,2.93109,3411.7,3411.1,0.0303756]
[1721316332426,3.53214643,3411.7,3411.3,0.03027056]
[1721316332622,3.53214643,3411.7,3411.2,0.03032308]
[1721316332623,2.93132,3411.5,3411.2,0.03032308]
[1721316332828,2.93132,3411.5,3411.4,0.03021804]
[1721316333065,2.93132,3411.5,3410.7,5.26198]
[1721316333066,2.93119,3411.6,3411.3,0.03027056]
[1721316333372,2.93119,3411.6,3410.7,5.26198]
[1721316333373,2.93119,3411.6,3411.4,0.03021804]
[1721316333528,2.93126,3411.5,3411.4,0.03021804]
[1721316333865,0.64633364,3411.6,3410.9,2.93174]
[1721316334071,2.93117,3411.6,3410.7,5.26198]
[1721316334226,2.93117,3411.6,3411.0,0.03042812]
[1721316334427,2.93117,3411.6,3410.8,2.93185]
[1721316334627,2.93117,3411.6,3411.1,0.0303756]
[1721316334825,0.1485243,3412.0,3411.4,2.93132]
[1721316335278,0.1485243,3412.0,3411.5,0.03016553]
[1721316335831,0.1485243,3412.0,3411.5,2.96140553]
[1721316336064,0.1485243,3412.0,3411.5,2.93124]
[1721316336235,0.1485243,3412.0,3411.6,0.03242941]
[1721316337179,0.1485243,3412.0,3411.0,2.93163]
[1721316337180,2.93101,3411.8,3411.0,2.93163]
[1721316337371,0.1485243,3412.0,3411.7,0.03006052]
[1721316337558,0.1485243,3412.0,3411.4,2.93133]
[1721316337730,0.1485243,3412.0,3411.8,0.03000801]
[1721316337939,0.1485243,3412.0,3411.2,2.93148]
[1721316338263,0.1485243,3412.0,3411.9,0.02995551]
[1721316338502,0.1485243,3412.0,3411.1,2.9316]
[1721316338658,0.1485243,3412.0,3411.9,0.02995551]
[1721316338860,3.0793543,3412.0,3411.9,0.02995551]
[1721316339081,0.1485243,3412.0,3411.2,2.93144]
[1721316339283,0.1485243,3412.0,3411.3,2.93142]
[1721316339452,0.1485243,3412.0,3411.3,0.03259906]
[1721316339802,2.93097,3411.9,3411.3,0.03259906]
[1721316339959,2.9311,3411.7,3411.3,0.03259906]
[1721316340306,2.93136,3411.4,3410.7,2.3301]
[1721316340455,2.93136,3411.4,3410.6,2.93198]
[1721316340656,2.93136,3411.4,3410.1,5.42775]
[1721316340657,2.93161,3411.1,3410.3,2.93229]
[1721316341115,2.93161,3411.1,3410.1,5.42776]
[1721316341250,2.93157,3411.2,3410.4,2.93218]
[1721316341451,2.93169,3411.0,3410.1,2.4953]
[1721316341656,2.93193,3410.8,3410.1,2.4953]
[1721316341896,2.93193,3410.8,3410.0,2.93248]
[1721316342094,2.9318,3410.9,3410.1,2.93241]
[1721316342397,2.932,3410.7,3409.9,2.93263]
[1721316342892,2.93212,3410.5,3409.8,2.93271]
[1721316343093,2.93202,3410.7,3409.8,2.93271]
[1721316343252,2.93204,3410.6,3409.8,2.93271]
[1721316343673,2.93165,3411.1,3409.8,0.820027]
[1721316343876,2.93143,3411.3,3410.4,2.93218]
[1721316344076,2.93143,3411.3,3410.5,2.93207]
[1721316345121,0.586247,3411.4,3410.6,2.93202]
[1721316345285,3.52703247,3411.6,3410.5,2.93207]
[1721316345490,2.93126,3411.5,3410.7,2.93194]
[1721316345912,0.59582247,3411.6,3410.8,2.93185]
[1721316346123,0.59582247,3411.6,3411.1,2.93155]
[1721316346343,0.59582247,3411.6,3411.2,2.93146]
[1721316346618,0.59582247,3411.6,3411.2,3.517761]
[1721316346912,0.59582247,3411.6,3411.2,0.586301]
[1721316347116,0.59582247,3411.6,3411.2,2.9315]
[1721316347292,0.59582247,3411.6,3411.1,2.93155]
[1721316347485,0.59582247,3411.6,3411.0,2.93161]
[1721316347899,0.59582247,3411.6,3411.2,2.93146]
[1721316348716,0.59582247,3411.6,3411.2,2.93145]
[1721316348915,0.59582247,3411.6,3411.1,2.93153]
[1721316349094,0.59582247,3411.6,3411.2,2.9315]
[1721316349624,3.0793943,3412.0,3411.3,2.93142]
[1721316349856,0.1485243,3412.0,3411.3,2.93142]
[1721316350345,0.1485243,3412.0,3411.4,0.03489928]
[1721316350963,0.1485243,3412.0,3411.3,2.93142]
[1721316351312,0.1485243,3412.0,3411.5,0.0348184]
[1721316351507,0.1485243,3412.0,3411.4,0.03487967]
[1721316351707,3.23886243,3411.9,3411.5,0.0348184]
[1721316352213,2.93101,3411.8,3411.6,0.03475714]
[1721316352519,0.30793243,3411.9,3410.6,2.285]
[1721316352520,2.93124,3411.6,3410.8,2.93181]
[1721316352836,2.93124,3411.6,3410.6,5.21702]
[1721316353043,0.30793243,3411.9,3410.9,2.93172]
[1721316353207,2.93111,3411.7,3410.9,2.93172]
[1721316353406,2.93111,3411.7,3410.7,5.86377]
[1721316353615,3.8346749,3411.9,3411.0,2.93167]
[1721316353919,2.931,3411.8,3411.0,2.93167]
[1721316354124,3.71178529,3411.8,3411.0,2.93167]
[1721316354835,3.71178529,3411.8,3411.0,2.93162]
[1721316355217,0.78078529,3411.8,3411.1,2.93159]
[1721316355418,0.30793243,3411.9,3411.1,2.93159]
[1721316356159,0.74434677,3412.0,3411.3,2.93141]
[1721316356459,0.1485243,3412.0,3411.3,2.93141]
[1721316356624,0.1485243,3412.0,3411.4,2.93134]
[1721316358672,3.0793543,3412.0,3411.2,2.93151]
[1721316358879,0.1485243,3412.0,3411.3,3.517696]
[1721316359261,0.1485243,3412.0,3411.6,2.93116]
[1721316359448,0.1485243,3412.0,3411.3,0.586316]
[1721316359650,0.1485243,3412.0,3411.7,0.03469232]
[1721316359841,0.1485243,3412.0,3411.4,2.93134]
[1721316360038,0.1485243,3412.0,3411.8,0.03463107]
[1721316360245,0.1485243,3412.0,3411.4,3.5762536]
[1721316360450,3.0794043,3412.0,3411.9,0.03456982]
[1721316360650,3.0794043,3412.0,3410.0,2.25]
[1721316360651,2.93144,3411.3,3410.0,2.25]
[1721316360838,2.93126,3411.5,3410.6,2.93201]
[1721316361343,2.93135,3411.4,3410.4,2.93216]
[1721316361565,2.93135,3411.4,3410.6,2.93201]
[1721316361873,2.93149,3411.3,3410.4,2.93216]
[1721316362079,2.93153,3411.2,3410.5,0.293216]
[1721316362374,2.93153,3411.2,3410.4,2.93216]
[1721316362375,2.93161,3411.1,3410.4,2.93216]
[1721316362565,2.93139,3411.4,3410.6,2.932]
[1721316362884,3.5311481,3411.6,3410.9,2.93175]
[1721316363180,0.5998981,3411.9,3411.1,2.93154]
[1721316363356,1.49012694,3411.9,3411.1,3.224694]
[1721316363539,3.0793743,3412.0,3411.1,3.224694]
[1721316363740,2.93092,3411.9,3411.1,3.224694]
[1721316364156,0.7484224,3412.0,3411.1,3.224694]
[1721316364335,0.7484224,3412.0,3411.2,2.93144]
[1721316364539,0.7484224,3412.0,3411.4,2.93134]